[Event "Early-Titled-Tuesday-Blitz-March-26-2024"]
[Site "Chess.com"]
[Date "2024.03.26"]
[Round "4"]
[White "MalyDominator"]
[Black "Szparu"]
[Result "0-1"]
[WhiteElo "2575"]
[BlackElo "2811"]
[TimeControl "180+1"]
[EndTime "8:36:15 PDT"]
[Termination "Szparu won by resignation"]

1. e4 {[%clk 0:03:00.9]} 1... c5 {[%clk 0:02:54.3]} 2. Nf3 {[%clk 0:02:59.7]}
2... a6 {[%clk 0:02:54.3]} 3. c4 {[%clk 0:02:56.5]} 3... Nc6 {[%clk 0:02:54.1]}
4. d4 {[%clk 0:02:56.9]} 4... cxd4 {[%clk 0:02:55]} 5. Nxd4 {[%clk 0:02:57.6]}
5... e5 {[%clk 0:02:55.4]} 6. Nc2 {[%clk 0:02:52.1]} 6... Bc5 {[%clk 0:02:54]}
7. Nc3 {[%clk 0:02:51.5]} 7... Nf6 {[%clk 0:02:50]} 8. Be2 {[%clk 0:02:51.7]}
8... d6 {[%clk 0:02:50]} 9. O-O {[%clk 0:02:51.6]} 9... O-O {[%clk 0:02:49.7]}
10. a3 {[%clk 0:02:52]} 10... Be6 {[%clk 0:02:48.1]} 11. b4 {[%clk 0:02:51.2]}
11... Ba7 {[%clk 0:02:48.3]} 12. Qd3 {[%clk 0:02:41.2]} 12... Rc8 {[%clk
0:02:46.4]} 13. Nd5 {[%clk 0:02:31.8]} 13... Bxd5 {[%clk 0:02:42.9]} 14. exd5
{[%clk 0:02:30.3]} 14... e4 {[%clk 0:02:40.6]} 15. Qb3 {[%clk 0:02:24.8]} 15...
Ne5 {[%clk 0:02:39.5]} 16. Bb2 {[%clk 0:02:25.3]} 16... Re8 {[%clk 0:02:38.2]}
17. Ne3 {[%clk 0:02:23]} 17... Qd7 {[%clk 0:02:32.1]} 18. Rfd1 {[%clk
0:02:09.7]} 18... h5 {[%clk 0:02:31.4]} 19. Rac1 {[%clk 0:01:52.7]} 19... Nfg4
{[%clk 0:02:19.7]} 20. Bxg4 {[%clk 0:01:27.2]} 20... hxg4 {[%clk 0:02:17.8]} 21.
Bd4 {[%clk 0:00:54.4]} 21... Bxd4 {[%clk 0:02:16.9]} 22. Rxd4 {[%clk 0:00:55.3]}
22... Nd3 {[%clk 0:02:08.3]} 23. Rf1 {[%clk 0:00:44.4]} 23... f5 {[%clk
0:02:08]} 24. Nc2 {[%clk 0:00:29.9]} 24... b5 {[%clk 0:02:02.6]} 25. Ne1 {[%clk
0:00:26.5]} 25... Qa7 {[%clk 0:01:56.6]} 26. c5 {[%clk 0:00:22.3]} 26... dxc5
{[%clk 0:01:56.7]} 27. d6+ {[%clk 0:00:22.8]} 27... c4 {[%clk 0:01:56.6]} 28.
Qc3 {[%clk 0:00:18.8]} 28... Nf4 {[%clk 0:01:49.4]} 29. Qd2 {[%clk 0:00:11.4]}
29... Qxd4 {[%clk 0:01:48.4]} 30. Qxd4 {[%clk 0:00:12.3]} 30... Ne2+ {[%clk
0:01:48.5]} 31. Kh1 {[%clk 0:00:13]} 31... Nxd4 {[%clk 0:01:49.1]} 32. d7 {[%clk
0:00:13.7]} 32... c3 {[%clk 0:01:48.2]} 33. dxe8=Q+ {[%clk 0:00:13.2]} 33...
Rxe8 {[%clk 0:01:48.6]} 0-1

[Event "Early-Titled-Tuesday-Blitz-March-26-2024"]
[Site "Chess.com"]
[Date "2024.03.26"]
[Round "4"]
[White "xasid81"]
[Black "yonaltimur"]
[Result "1-0"]
[WhiteElo "2586"]
[BlackElo "2400"]
[TimeControl "180+1"]
[EndTime "8:36:23 PDT"]
[Termination "xasid81 won by resignation"]

1. e4 {[%clk 0:02:19.9]} 1... c5 {[%clk 0:02:57.4]} 2. Nf3 {[%clk 0:02:19.3]}
2... d6 {[%clk 0:02:57.6]} 3. a4 {[%clk 0:02:18.8]} 3... Nf6 {[%clk 0:02:57.4]}
4. Nc3 {[%clk 0:02:18.8]} 4... g6 {[%clk 0:02:54.2]} 5. Bc4 {[%clk 0:02:16]}
5... Bg7 {[%clk 0:02:53.8]} 6. h3 {[%clk 0:02:14.3]} 6... O-O {[%clk 0:02:53.6]}
7. O-O {[%clk 0:02:14.3]} 7... e6 {[%clk 0:02:50.6]} 8. d3 {[%clk 0:02:14]} 8...
d5 {[%clk 0:02:50.9]} 9. Ba2 {[%clk 0:02:11.2]} 9... Nc6 {[%clk 0:02:47.8]} 10.
exd5 {[%clk 0:02:07.3]} 10... exd5 {[%clk 0:02:44.8]} 11. Bg5 {[%clk 0:02:07.1]}
11... Be6 {[%clk 0:02:44.6]} 12. Re1 {[%clk 0:02:05.2]} 12... h6 {[%clk
0:02:43]} 13. Bh4 {[%clk 0:02:02.7]} 13... g5 {[%clk 0:02:41.8]} 14. Bg3 {[%clk
0:02:02.4]} 14... Qd7 {[%clk 0:02:41.1]} 15. Ne5 {[%clk 0:02:01.4]} 15... Nxe5
{[%clk 0:02:39.9]} 16. Bxe5 {[%clk 0:02:02.3]} 16... Rfe8 {[%clk 0:02:39.8]} 17.
Qf3 {[%clk 0:01:58.8]} 17... d4 {[%clk 0:01:34.5]} 18. Bxf6 {[%clk 0:01:50.8]}
18... dxc3 {[%clk 0:01:25.4]} 19. Bxg7 {[%clk 0:01:41.6]} 19... Kxg7 {[%clk
0:01:20.4]} 20. Bxe6 {[%clk 0:01:40.9]} 20... Rxe6 {[%clk 0:01:11.8]} 21. Rxe6
{[%clk 0:01:37.4]} 21... cxb2 {[%clk 0:01:10]} 22. Qf6+ {[%clk 0:01:34.8]} 22...
Kg8 {[%clk 0:01:09.5]} 23. Rb1 {[%clk 0:01:23]} 23... Qxe6 {[%clk 0:01:08.6]}
24. Qxe6 {[%clk 0:01:20.9]} 24... fxe6 {[%clk 0:01:09.5]} 25. Rxb2 {[%clk
0:01:21.5]} 25... b6 {[%clk 0:01:07]} 26. Kf1 {[%clk 0:01:19.7]} 26... Kf7
{[%clk 0:01:06.6]} 27. Ke2 {[%clk 0:01:19.7]} 27... Rd8 {[%clk 0:01:05.5]} 28.
a5 {[%clk 0:01:19]} 28... Rd6 {[%clk 0:01:05]} 29. Ke3 {[%clk 0:01:18.7]} 29...
Kf6 {[%clk 0:01:04.3]} 30. g3 {[%clk 0:01:16.5]} 30... Ke5 {[%clk 0:00:53.5]}
31. axb6 {[%clk 0:01:15.9]} 31... axb6 {[%clk 0:00:53.2]} 32. Rb5 {[%clk
0:01:14.4]} 32... Kd5 {[%clk 0:00:51.9]} 33. Rb1 {[%clk 0:01:14.1]} 33... Kc6
{[%clk 0:00:51.4]} 34. Ra1 {[%clk 0:01:14.1]} 34... b5 {[%clk 0:00:50.1]} 35.
Ra6+ {[%clk 0:01:13.2]} 35... Kd5 {[%clk 0:00:50.5]} 36. c4+ {[%clk 0:01:11.6]}
36... bxc4 {[%clk 0:00:49.4]} 37. dxc4+ {[%clk 0:01:12.5]} 37... Ke5 {[%clk
0:00:50]} 38. f4+ {[%clk 0:01:12.5]} 38... gxf4+ {[%clk 0:00:50.9]} 39. gxf4+
{[%clk 0:01:13.2]} 1-0

[Event "Early-Titled-Tuesday-Blitz-March-26-2024"]
[Site "Chess.com"]
[Date "2024.03.26"]
[Round "4"]
[White "UK_23"]
[Black "Revan_2002"]
[Result "0-1"]
[WhiteElo "2405"]
[BlackElo "2588"]
[TimeControl "180+1"]
[EndTime "8:36:28 PDT"]
[Termination "Revan_2002 won by checkmate"]

1. e4 {[%clk 0:02:58.8]} 1... e5 {[%clk 0:02:56.5]} 2. Nf3 {[%clk 0:02:59]} 2...
Nc6 {[%clk 0:02:56.7]} 3. d4 {[%clk 0:02:59.5]} 3... exd4 {[%clk 0:02:56.1]} 4.
Nxd4 {[%clk 0:03:00.1]} 4... Bc5 {[%clk 0:02:56.3]} 5. Nb3 {[%clk 0:02:53.9]}
5... Bb6 {[%clk 0:02:55.9]} 6. Qe2 {[%clk 0:02:51.4]} 6... Nf6 {[%clk
0:02:53.2]} 7. Nc3 {[%clk 0:02:49.8]} 7... O-O {[%clk 0:02:52.1]} 8. Be3 {[%clk
0:02:50.4]} 8... d6 {[%clk 0:02:51.3]} 9. O-O-O {[%clk 0:02:48.8]} 9... Re8
{[%clk 0:02:51]} 10. Bxb6 {[%clk 0:02:38.7]} 10... axb6 {[%clk 0:02:50.3]} 11.
f3 {[%clk 0:02:34.8]} 11... Be6 {[%clk 0:02:50.7]} 12. Kb1 {[%clk 0:02:34.8]}
12... Ne5 {[%clk 0:02:09.8]} 13. g4 {[%clk 0:02:27.1]} 13... Bc4 {[%clk
0:02:06.6]} 14. Qf2 {[%clk 0:02:18.9]} 14... Bxf1 {[%clk 0:02:04]} 15. Rhxf1
{[%clk 0:02:19.8]} 15... Qd7 {[%clk 0:01:52.3]} 16. g5 {[%clk 0:02:18.6]} 16...
Nh5 {[%clk 0:01:50.9]} 17. f4 {[%clk 0:02:10.1]} 17... Nc4 {[%clk 0:01:47.7]}
18. Qh4 {[%clk 0:02:06.8]} 18... g6 {[%clk 0:01:44.6]} 19. Rf3 {[%clk
0:01:32.3]} 19... c6 {[%clk 0:01:42]} 20. e5 {[%clk 0:01:21.3]} 20... b5 {[%clk
0:01:36.2]} 21. Ne4 {[%clk 0:01:17.3]} 21... Qf5 {[%clk 0:01:31]} 22. Nxd6
{[%clk 0:00:38.3]} 22... Nxd6 {[%clk 0:01:30]} 23. Rxd6 {[%clk 0:00:38.8]} 23...
Rxe5 {[%clk 0:01:13.6]} 24. Nd4 {[%clk 0:00:20.9]} 24... Qe4 {[%clk 0:01:12.9]}
25. fxe5 {[%clk 0:00:19.3]} 25... Qxh4 {[%clk 0:01:12.3]} 26. e6 {[%clk
0:00:19.8]} 26... Qe1# {[%clk 0:01:11.4]} 0-1

[Event "Early-Titled-Tuesday-Blitz-March-26-2024"]
[Site "Chess.com"]
[Date "2024.03.26"]
[Round "4"]
[White "ChessSwole"]
[Black "Vision_64"]
[Result "1-0"]
[WhiteElo "2689"]
[BlackElo "2242"]
[TimeControl "180+1"]
[EndTime "8:36:29 PDT"]
[Termination "ChessSwole won by resignation"]

1. e4 {[%clk 0:03:00.9]} 1... e6 {[%clk 0:02:57.5]} 2. d4 {[%clk 0:03:00.1]}
2... d5 {[%clk 0:02:57.5]} 3. Bd3 {[%clk 0:02:59.9]} 3... Nc6 {[%clk 0:02:52]}
4. c3 {[%clk 0:02:54.8]} 4... e5 {[%clk 0:02:51.9]} 5. Nf3 {[%clk 0:02:48.9]}
5... exd4 {[%clk 0:02:48]} 6. cxd4 {[%clk 0:02:45.1]} 6... dxe4 {[%clk
0:02:48.3]} 7. Bxe4 {[%clk 0:02:45.6]} 7... Bb4+ {[%clk 0:02:48.8]} 8. Nc3
{[%clk 0:02:45.4]} 8... Nge7 {[%clk 0:02:47.1]} 9. O-O {[%clk 0:02:36.8]} 9...
O-O {[%clk 0:02:39.5]} 10. a3 {[%clk 0:02:20.1]} 10... Bxc3 {[%clk 0:02:38.2]}
11. bxc3 {[%clk 0:02:19.9]} 11... Be6 {[%clk 0:02:37.5]} 12. Rb1 {[%clk
0:02:16.6]} 12... Rb8 {[%clk 0:02:34.2]} 13. Bf4 {[%clk 0:02:10.7]} 13... Bc4
{[%clk 0:02:24]} 14. Re1 {[%clk 0:02:06.6]} 14... Nd5 {[%clk 0:02:22]} 15. Bd2
{[%clk 0:02:04.3]} 15... h6 {[%clk 0:02:15.6]} 16. Qc1 {[%clk 0:01:55]} 16...
Nf6 {[%clk 0:02:14.1]} 17. Bc2 {[%clk 0:01:43.3]} 17... Qd5 {[%clk 0:02:06.9]}
18. Bxh6 {[%clk 0:01:33.3]} 18... Qh5 {[%clk 0:00:48]} 19. Bf4 {[%clk
0:01:29.8]} 19... Bd5 {[%clk 0:00:45.5]} 20. Ne5 {[%clk 0:01:23.1]} 20... Nxe5
{[%clk 0:00:30.4]} 21. Rxe5 {[%clk 0:01:22.6]} 21... Qg4 {[%clk 0:00:24.1]} 22.
Rg5 {[%clk 0:01:21.6]} 22... Qe2 {[%clk 0:00:23.9]} 23. Be5 {[%clk 0:01:14.8]}
23... Ne4 {[%clk 0:00:19.5]} 24. Rxg7+ {[%clk 0:01:14.1]} 1-0

[Event "Early-Titled-Tuesday-Blitz-March-26-2024"]
[Site "Chess.com"]
[Date "2024.03.26"]
[Round "4"]
[White "wonderfultime"]
[Black "NikitaShnadrygin"]
[Result "1-0"]
[WhiteElo "2996"]
[BlackElo "2648"]
[TimeControl "180+1"]
[EndTime "8:36:30 PDT"]
[Termination "wonderfultime won by resignation"]

1. d4 {[%clk 0:02:46]} 1... d5 {[%clk 0:02:58.4]} 2. Nf3 {[%clk 0:02:46]} 2...
Nc6 {[%clk 0:02:59]} 3. Bf4 {[%clk 0:02:45.9]} 3... Bg4 {[%clk 0:02:59]} 4. Nbd2
{[%clk 0:02:45.6]} 4... e6 {[%clk 0:02:59.3]} 5. c3 {[%clk 0:02:44.8]} 5... Bd6
{[%clk 0:02:58.9]} 6. Bg3 {[%clk 0:02:45.4]} 6... Nge7 {[%clk 0:02:57.7]} 7. Qb3
{[%clk 0:02:45]} 7... Rb8 {[%clk 0:02:57.2]} 8. e3 {[%clk 0:02:45.2]} 8... O-O
{[%clk 0:02:57]} 9. Bd3 {[%clk 0:02:43.6]} 9... Bf5 {[%clk 0:02:53.7]} 10. Bxf5
{[%clk 0:02:42.4]} 10... Nxf5 {[%clk 0:02:53.2]} 11. e4 {[%clk 0:02:41]} 11...
dxe4 {[%clk 0:02:45.1]} 12. Nxe4 {[%clk 0:02:41.9]} 12... b5 {[%clk 0:02:36.3]}
13. O-O {[%clk 0:02:30.9]} 13... Nxg3 {[%clk 0:01:47.5]} 14. hxg3 {[%clk
0:02:29.7]} 14... Qd7 {[%clk 0:01:41.9]} 15. Rad1 {[%clk 0:02:27.1]} 15... Na5
{[%clk 0:01:36]} 16. Qc2 {[%clk 0:02:26]} 16... h6 {[%clk 0:01:26]} 17. g4
{[%clk 0:02:18.9]} 17... Qc6 {[%clk 0:01:09.9]} 18. g5 {[%clk 0:02:15.1]} 18...
h5 {[%clk 0:01:08.7]} 19. Rfe1 {[%clk 0:02:09.7]} 19... Rbe8 {[%clk 0:00:55.2]}
20. g6 {[%clk 0:02:05.7]} 20... f6 {[%clk 0:00:41.8]} 21. Qe2 {[%clk 0:02:03.2]}
21... Qc4 {[%clk 0:00:32.1]} 22. Rd3 {[%clk 0:02:01.4]} 22... Qxa2 {[%clk
0:00:26.5]} 23. Ne5 {[%clk 0:01:33.1]} 23... fxe5 {[%clk 0:00:20.6]} 24. dxe5
{[%clk 0:01:26.6]} 24... Rf5 {[%clk 0:00:09.9]} 25. exd6 {[%clk 0:01:26.4]} 1-0

[Event "Early-Titled-Tuesday-Blitz-March-26-2024"]
[Site "Chess.com"]
[Date "2024.03.26"]
[Round "4"]
[White "Fore_Man"]
[Black "jraosam"]
[Result "1-0"]
[WhiteElo "2278"]
[BlackElo "1999"]
[TimeControl "180+1"]
[EndTime "8:36:32 PDT"]
[Termination "Fore_Man won on time"]

1. Nf3 {[%clk 0:02:59.8]} 1... Nf6 {[%clk 0:02:53.2]} 2. d4 {[%clk 0:02:59.6]}
2... e6 {[%clk 0:02:51.7]} 3. c4 {[%clk 0:03:00.1]} 3... d5 {[%clk 0:02:47.6]}
4. Nc3 {[%clk 0:03:00]} 4... Be7 {[%clk 0:02:45.4]} 5. Bf4 {[%clk 0:02:55.6]}
5... O-O {[%clk 0:02:45.6]} 6. e3 {[%clk 0:02:55.9]} 6... dxc4 {[%clk
0:02:44.8]} 7. Bxc4 {[%clk 0:02:54.8]} 7... a6 {[%clk 0:02:45.5]} 8. Bd3 {[%clk
0:02:53.8]} 8... c5 {[%clk 0:02:45.3]} 9. dxc5 {[%clk 0:02:50.1]} 9... Bxc5
{[%clk 0:02:44.4]} 10. Qc2 {[%clk 0:02:50.3]} 10... Nc6 {[%clk 0:02:42.3]} 11.
a3 {[%clk 0:02:49.2]} 11... Be7 {[%clk 0:02:37.9]} 12. Ne5 {[%clk 0:02:45.6]}
12... Nxe5 {[%clk 0:02:34.5]} 13. Bxe5 {[%clk 0:02:46.5]} 13... h6 {[%clk
0:02:34.2]} 14. O-O-O {[%clk 0:02:43.2]} 14... Qa5 {[%clk 0:02:31.7]} 15. Bxf6
{[%clk 0:02:36.2]} 15... Bxf6 {[%clk 0:02:32.6]} 16. Ne4 {[%clk 0:02:36.8]}
16... Be7 {[%clk 0:02:19]} 17. Qc3 {[%clk 0:02:33]} 17... Qxc3+ {[%clk
0:02:14.5]} 18. Nxc3 {[%clk 0:02:33.9]} 18... Rd8 {[%clk 0:02:10.7]} 19. Be4
{[%clk 0:02:33]} 19... f5 {[%clk 0:02:08.3]} 20. Bf3 {[%clk 0:02:32.7]} 20... g5
{[%clk 0:02:06.3]} 21. h3 {[%clk 0:02:27.6]} 21... Bf6 {[%clk 0:02:04.8]} 22.
Rxd8+ {[%clk 0:02:24.6]} 22... Bxd8 {[%clk 0:02:05.7]} 23. Rd1 {[%clk
0:02:23.7]} 23... Bf6 {[%clk 0:02:02.2]} 24. Na4 {[%clk 0:02:23.8]} 24... e5
{[%clk 0:01:56.4]} 25. Nb6 {[%clk 0:02:22.5]} 25... Rb8 {[%clk 0:01:55.5]} 26.
Bd5+ {[%clk 0:02:21.2]} 26... Kf8 {[%clk 0:01:53.9]} 27. Kb1 {[%clk 0:02:21.1]}
27... e4 {[%clk 0:01:53.1]} 28. Rc1 {[%clk 0:02:03.8]} 28... Bd8 {[%clk
0:01:09.7]} 29. Rxc8 {[%clk 0:02:00.7]} 29... Rxc8 {[%clk 0:01:04.1]} 30. Nxc8
{[%clk 0:02:01.6]} 30... b5 {[%clk 0:01:03.7]} 31. Nd6 {[%clk 0:02:00.4]} 31...
f4 {[%clk 0:00:53.3]} 32. Bxe4 {[%clk 0:01:56.1]} 32... fxe3 {[%clk 0:00:52.3]}
33. fxe3 {[%clk 0:01:57]} 33... Bb6 {[%clk 0:00:52.8]} 34. Nf5 {[%clk
0:01:57.3]} 1-0

[Event "Early-Titled-Tuesday-Blitz-March-26-2024"]
[Site "Chess.com"]
[Date "2024.03.26"]
[Round "4"]
[White "Josetricks"]
[Black "lilleper1"]
[Result "0-1"]
[WhiteElo "2699"]
[BlackElo "2922"]
[TimeControl "180+1"]
[EndTime "8:36:38 PDT"]
[Termination "lilleper1 won by resignation"]

1. e4 {[%clk 0:03:00.9]} 1... e5 {[%clk 0:03:00.1]} 2. Nf3 {[%clk 0:03:00.6]}
2... Nc6 {[%clk 0:03:00.3]} 3. Bc4 {[%clk 0:03:00.7]} 3... g6 {[%clk 0:02:48.7]}
4. O-O {[%clk 0:02:57.2]} 4... Bg7 {[%clk 0:02:49]} 5. c3 {[%clk 0:02:57.8]}
5... d6 {[%clk 0:02:48.1]} 6. d4 {[%clk 0:02:56.3]} 6... Qe7 {[%clk 0:02:47.2]}
7. h3 {[%clk 0:02:53.1]} 7... Nf6 {[%clk 0:02:47.2]} 8. Re1 {[%clk 0:02:53.2]}
8... O-O {[%clk 0:02:47.2]} 9. Qc2 {[%clk 0:02:45.3]} 9... Nh5 {[%clk
0:02:43.1]} 10. Be3 {[%clk 0:02:39.1]} 10... Kh8 {[%clk 0:02:38.9]} 11. g4
{[%clk 0:02:21.9]} 11... Nf6 {[%clk 0:02:33.6]} 12. Nbd2 {[%clk 0:02:16.5]}
12... h5 {[%clk 0:02:25.1]} 13. g5 {[%clk 0:02:12.9]} 13... Nh7 {[%clk 0:02:18]}
14. Bf1 {[%clk 0:02:01.7]} 14... f6 {[%clk 0:02:18.1]} 15. d5 {[%clk 0:01:51.4]}
15... Nd8 {[%clk 0:02:17.5]} 16. Bg2 {[%clk 0:01:38.8]} 16... fxg5 {[%clk
0:02:15.3]} 17. Nh2 {[%clk 0:00:57.7]} 17... Nf7 {[%clk 0:02:11.5]} 18. Ndf1
{[%clk 0:00:53.6]} 18... g4 {[%clk 0:02:01]} 19. hxg4 {[%clk 0:00:51.9]} 19...
hxg4 {[%clk 0:02:00.5]} 20. c4 {[%clk 0:00:51.7]} 20... Qh4 {[%clk 0:01:54.8]}
21. Ng3 {[%clk 0:00:46.7]} 21... Nfg5 {[%clk 0:01:51.3]} 22. Qe2 {[%clk
0:00:44.7]} 22... Bd7 {[%clk 0:01:41.2]} 23. c5 {[%clk 0:00:42.4]} 23... Rf7
{[%clk 0:01:40.2]} 24. cxd6 {[%clk 0:00:35.2]} 24... cxd6 {[%clk 0:01:41.1]} 25.
Rac1 {[%clk 0:00:34]} 25... Raf8 {[%clk 0:01:27.3]} 26. Rc7 {[%clk 0:00:31.7]}
26... Nf3+ {[%clk 0:01:10]} 27. Nxf3 {[%clk 0:00:29.8]} 27... gxf3 {[%clk
0:01:10.9]} 28. Bxf3 {[%clk 0:00:30.1]} 28... Rxf3 {[%clk 0:01:11.1]} 29. Rxd7
{[%clk 0:00:28.1]} 29... Rxg3+ {[%clk 0:01:11.4]} 30. fxg3 {[%clk 0:00:26.2]}
30... Qxg3+ {[%clk 0:01:12.3]} 31. Kh1 {[%clk 0:00:24.8]} 31... Qh3+ {[%clk
0:01:12.6]} 32. Kg1 {[%clk 0:00:22.1]} 32... Qxd7 {[%clk 0:01:13]} 0-1

[Event "Early-Titled-Tuesday-Blitz-March-26-2024"]
[Site "Chess.com"]
[Date "2024.03.26"]
[Round "4"]
[White "Statham_01"]
[Black "ploxoi"]
[Result "0-1"]
[WhiteElo "2570"]
[BlackElo "2421"]
[TimeControl "180+1"]
[EndTime "8:36:38 PDT"]
[Termination "ploxoi won by resignation"]

1. Na3 {[%clk 0:03:00.9]} 1... d5 {[%clk 0:02:59.7]} 2. c4 {[%clk 0:02:59.7]}
2... e6 {[%clk 0:02:58.1]} 3. d4 {[%clk 0:02:59.5]} 3... Nf6 {[%clk 0:02:56.6]}
4. Nf3 {[%clk 0:02:59.4]} 4... c6 {[%clk 0:02:57]} 5. Nc2 {[%clk 0:02:58.6]}
5... dxc4 {[%clk 0:02:55.2]} 6. Bg5 {[%clk 0:02:59.1]} 6... b5 {[%clk 0:02:55]}
7. e4 {[%clk 0:02:58.5]} 7... h6 {[%clk 0:02:54.7]} 8. Bxf6 {[%clk 0:02:53.4]}
8... Qxf6 {[%clk 0:02:55.6]} 9. a4 {[%clk 0:02:53.4]} 9... Bb7 {[%clk
0:02:55.4]} 10. g3 {[%clk 0:02:45.6]} 10... Nd7 {[%clk 0:02:54.1]} 11. Bg2
{[%clk 0:02:44.9]} 11... Qd8 {[%clk 0:02:45]} 12. axb5 {[%clk 0:02:35]} 12...
cxb5 {[%clk 0:02:44.4]} 13. d5 {[%clk 0:02:35.9]} 13... Nc5 {[%clk 0:02:35.9]}
14. O-O {[%clk 0:02:29.1]} 14... Be7 {[%clk 0:02:31.2]} 15. Nfd4 {[%clk
0:02:18.4]} 15... a6 {[%clk 0:02:26.6]} 16. dxe6 {[%clk 0:02:15.4]} 16... Nxe6
{[%clk 0:02:24.9]} 17. Nxe6 {[%clk 0:02:09.3]} 17... Qxd1 {[%clk 0:02:24.7]} 18.
Nxg7+ {[%clk 0:02:05.7]} 18... Kf8 {[%clk 0:02:20.5]} 19. Raxd1 {[%clk
0:01:45.4]} 19... Kxg7 {[%clk 0:02:18.3]} 20. Rd7 {[%clk 0:01:44.9]} 20... Bf6
{[%clk 0:02:18.7]} 21. Rxb7 {[%clk 0:01:25.7]} 21... Bxb2 {[%clk 0:02:18.8]} 22.
Ne3 {[%clk 0:01:20.5]} 22... Rhd8 {[%clk 0:02:12.1]} 23. Nf5+ {[%clk 0:01:19.1]}
23... Kf8 {[%clk 0:01:52]} 24. f4 {[%clk 0:01:10.7]} 24... c3 {[%clk 0:01:48.6]}
25. e5 {[%clk 0:00:59.5]} 25... c2 {[%clk 0:01:34.8]} 26. Nxh6 {[%clk
0:00:56.4]} 26... Ra7 {[%clk 0:01:35.1]} 27. Rxa7 {[%clk 0:00:21.7]} 27... Bd4+
{[%clk 0:01:34.3]} 28. Kh1 {[%clk 0:00:22.3]} 28... Bxa7 {[%clk 0:01:35]} 29.
Be4 {[%clk 0:00:10.1]} 29... Rd1 {[%clk 0:01:32.9]} 30. Bxc2 {[%clk 0:00:10.1]}
30... Rxf1+ {[%clk 0:01:33.5]} 31. Kg2 {[%clk 0:00:11]} 31... Rf2+ {[%clk
0:01:34.4]} 0-1

[Event "Early-Titled-Tuesday-Blitz-March-26-2024"]
[Site "Chess.com"]
[Date "2024.03.26"]
[Round "4"]
[White "ragnaroek66"]
[Black "rionelG"]
[Result "1-0"]
[WhiteElo "2520"]
[BlackElo "2202"]
[TimeControl "180+1"]
[EndTime "8:36:40 PDT"]
[Termination "ragnaroek66 won by resignation"]

1. d4 {[%clk 0:03:00.9]} 1... d5 {[%clk 0:02:58.3]} 2. c4 {[%clk 0:03:00]} 2...
e6 {[%clk 0:02:58.7]} 3. Nf3 {[%clk 0:02:57]} 3... Nf6 {[%clk 0:02:58.3]} 4. g3
{[%clk 0:02:55.9]} 4... Be7 {[%clk 0:02:58.8]} 5. Bg2 {[%clk 0:02:54.7]} 5...
O-O {[%clk 0:02:59.5]} 6. O-O {[%clk 0:02:55.4]} 6... dxc4 {[%clk 0:02:59.9]} 7.
Qc2 {[%clk 0:02:55.6]} 7... b5 {[%clk 0:03:00.1]} 8. a4 {[%clk 0:02:55.9]} 8...
Bb7 {[%clk 0:02:59.1]} 9. axb5 {[%clk 0:02:54.6]} 9... a6 {[%clk 0:02:59.6]} 10.
bxa6 {[%clk 0:02:45.9]} 10... Nxa6 {[%clk 0:03:00.5]} 11. Qxc4 {[%clk
0:02:44.7]} 11... Bd5 {[%clk 0:03:00.6]} 12. Qc3 {[%clk 0:02:42.2]} 12... Ne4
{[%clk 0:02:30.5]} 13. Qe3 {[%clk 0:02:35.5]} 13... Nb4 {[%clk 0:02:03.8]} 14.
Rxa8 {[%clk 0:02:33.7]} 14... Bxa8 {[%clk 0:01:49.7]} 15. Rd1 {[%clk 0:02:21.8]}
15... c5 {[%clk 0:01:44.7]} 16. Nc3 {[%clk 0:02:04.5]} 16... Nxc3 {[%clk
0:01:12.3]} 17. Qxc3 {[%clk 0:01:49]} 17... Na2 {[%clk 0:01:09.8]} 18. Qc2
{[%clk 0:01:39.8]} 18... Nxc1 {[%clk 0:01:09.7]} 19. dxc5 {[%clk 0:01:39.5]}
19... Qc7 {[%clk 0:01:06.6]} 20. Rxc1 {[%clk 0:01:38.1]} 20... h6 {[%clk
0:01:00.1]} 21. b4 {[%clk 0:01:36.6]} 21... Rb8 {[%clk 0:00:59.8]} 22. Qc3
{[%clk 0:01:32.3]} 22... Qb7 {[%clk 0:00:47.5]} 23. Ne1 {[%clk 0:01:22.3]} 23...
Qa6 {[%clk 0:00:29.7]} 24. Bxa8 {[%clk 0:01:17.9]} 24... Rxa8 {[%clk 0:00:26.7]}
25. Nd3 {[%clk 0:01:17.8]} 25... Bf6 {[%clk 0:00:23.1]} 26. Qc4 {[%clk
0:01:17.4]} 26... Qa3 {[%clk 0:00:18.7]} 27. c6 {[%clk 0:01:12.8]} 1-0

[Event "Early-Titled-Tuesday-Blitz-March-26-2024"]
[Site "Chess.com"]
[Date "2024.03.26"]
[Round "4"]
[White "Josgar05"]
[Black "ZenBull"]
[Result "0-1"]
[WhiteElo "2368"]
[BlackElo "2298"]
[TimeControl "180+1"]
[EndTime "8:36:42 PDT"]
[Termination "ZenBull won by resignation"]

1. Nf3 {[%clk 0:03:00.9]} 1... c5 {[%clk 0:02:56.1]} 2. b3 {[%clk 0:03:00.6]}
2... Nc6 {[%clk 0:02:55.3]} 3. Bb2 {[%clk 0:03:01.2]} 3... Nf6 {[%clk
0:02:55.1]} 4. e3 {[%clk 0:03:01.2]} 4... g6 {[%clk 0:02:53.7]} 5. Be2 {[%clk
0:03:01.3]} 5... Bg7 {[%clk 0:02:54]} 6. O-O {[%clk 0:03:02]} 6... O-O {[%clk
0:02:54.3]} 7. d4 {[%clk 0:03:02.6]} 7... cxd4 {[%clk 0:02:54.2]} 8. exd4 {[%clk
0:03:03.5]} 8... d5 {[%clk 0:02:54.3]} 9. c4 {[%clk 0:02:55.8]} 9... Bg4 {[%clk
0:02:54.2]} 10. h3 {[%clk 0:02:52.8]} 10... Bxf3 {[%clk 0:02:54]} 11. Bxf3
{[%clk 0:02:53.7]} 11... e6 {[%clk 0:02:53.7]} 12. c5 {[%clk 0:02:50.6]} 12...
Ne4 {[%clk 0:02:40.3]} 13. Nd2 {[%clk 0:02:06.4]} 13... Nxc5 {[%clk 0:02:36.9]}
14. dxc5 {[%clk 0:02:00.9]} 14... Bxb2 {[%clk 0:02:36.2]} 15. Rb1 {[%clk
0:02:01.8]} 15... Bg7 {[%clk 0:02:35.8]} 16. b4 {[%clk 0:02:01.2]} 16... a6
{[%clk 0:02:35.3]} 17. a4 {[%clk 0:02:01.2]} 17... Rc8 {[%clk 0:02:31.4]} 18.
Re1 {[%clk 0:02:00.9]} 18... Qd7 {[%clk 0:02:25]} 19. Nf1 {[%clk 0:01:36.7]}
19... Rfd8 {[%clk 0:02:19.6]} 20. h4 {[%clk 0:01:33.8]} 20... h5 {[%clk
0:02:14]} 21. Ng3 {[%clk 0:01:32.5]} 21... a5 {[%clk 0:02:07.2]} 22. b5 {[%clk
0:01:32]} 22... Ne5 {[%clk 0:02:05.8]} 23. Rc1 {[%clk 0:01:29.3]} 23... Nxf3+
{[%clk 0:02:02.9]} 24. Qxf3 {[%clk 0:01:30.2]} 24... Qe7 {[%clk 0:02:01.8]} 25.
Qe3 {[%clk 0:01:23.9]} 25... Qxh4 {[%clk 0:01:58.6]} 26. c6 {[%clk 0:01:11.5]}
26... bxc6 {[%clk 0:01:57.6]} 27. bxc6 {[%clk 0:01:12.4]} 27... Qxa4 {[%clk
0:01:54.8]} 28. Qb6 {[%clk 0:01:09.5]} 28... Qb4 {[%clk 0:01:51.8]} 29. Qa6
{[%clk 0:01:05.5]} 29... Ra8 {[%clk 0:01:43.9]} 30. c7 {[%clk 0:00:51]} 30...
Rdc8 {[%clk 0:01:43.5]} 31. Qc6 {[%clk 0:00:50.9]} 31... a4 {[%clk 0:01:24.2]}
32. Rb1 {[%clk 0:00:48.5]} 32... Qc4 {[%clk 0:01:23.4]} 33. Qxc4 {[%clk
0:00:37.5]} 33... dxc4 {[%clk 0:01:24.1]} 34. Rb7 {[%clk 0:00:38.1]} 34... a3
{[%clk 0:01:20.8]} 35. Ne4 {[%clk 0:00:38.8]} 35... Bf8 {[%clk 0:01:14.6]} 36.
Nf6+ {[%clk 0:00:37.2]} 36... Kg7 {[%clk 0:01:13.2]} 37. Nd7 {[%clk 0:00:38.1]}
37... a2 {[%clk 0:01:12.4]} 38. Nb6 {[%clk 0:00:38.2]} 38... a1=Q {[%clk
0:01:09.1]} 39. Rxa1 {[%clk 0:00:38.3]} 39... Rxa1+ {[%clk 0:01:09.1]} 40. Kh2
{[%clk 0:00:38.8]} 40... Rxc7 {[%clk 0:01:08.5]} 0-1